bitfinex-derivatives/quotes_SOLF0:USTF0_20250409
["timestamp","ask_amount","ask_price","bid_price","bid_amount"]
[1744162682504,1.93592101,103.31,103.27,66.79528737]
[1744162682808,14.2187,103.37,103.32,9.6857]
[1744162683210,77.32,103.42,103.33,66.73214787]
[1744162683908,0.07235522,103.39,103.36,0.06687859]
[1744162684310,0.07235522,103.39,103.34,4.6047]
[1744162684513,0.07235522,103.39,103.36,0.06264264]
[1744162685214,76.48450309,103.39,103.27,4.6047]
[1744162685414,1.93461017,103.38,103.28,66.73214787]
[1744162685621,1.93461017,103.38,103.3,66.73214787]
[1744162685918,1.93461017,103.38,103.32,66.73214787]
[1744162686120,1.93461017,103.38,103.31,77.28]
[1744162686321,0.07318205,103.36,103.34,0.0689105]
[1744162686620,9.6842,103.35,103.28,81.06344787]
[1744162686921,0.06615938,103.36,103.34,0.07151272]
[1744162687223,0.06782106,103.36,103.34,0.06492652]
[1744162688513,9.75072106,103.36,103.34,0.06492652]
[1744162689122,0.06782106,103.36,103.34,0.06492652]
[1744162689616,9.75062106,103.36,103.34,0.06492652]
[1744162690425,0.06782106,103.36,103.34,0.06492652]
[1744162692023,9.75102106,103.36,103.34,0.06492652]
[1744162692323,0.06782106,103.36,103.34,0.06492652]
[1744162692623,9.6834,103.35,103.34,0.06492652]
[1744162692819,0.06782106,103.36,103.34,0.06492652]
[1744162694824,1.93461017,103.38,103.34,66.79707439]
[1744162695023,4.6085,103.43,103.36,66.73214787]
[1744162695218,4.817,103.46,103.38,66.73214787]
[1744162695525,66.73214787,103.53,103.42,66.73214787]
[1744162695729,542.2,103.54,103.44,66.73214787]
[1744162695730,11.35545277,103.52,103.44,66.73214787]
[1744162695925,4.7703,103.52,103.45,77.22]
[1744162696121,77.22,103.54,103.45,77.22]
[1744162696122,359.0,103.58,103.48,66.73214787]
[1744162696429,9.6662,103.54,103.48,76.40254787]
[1744162696618,4.7703,103.57,103.5,66.73214787]
[1744162697017,9.4833,103.58,103.5,66.73214787]
[1744162697222,4.7703,103.63,103.52,66.73214787]
[1744162697423,9.6603,103.6,103.54,76.39714787]
[1744162697627,14.2536,103.63,103.54,76.39714787]
[1744162697820,156.66895875,103.64,103.54,66.73214787]
[1744162698134,1.77015048,103.63,103.56,66.73214787]
[1744162698326,1.77015048,103.63,103.54,531.51214787]
[1744162698529,1.77015048,103.63,103.54,464.78]
[1744162698723,0.0630994,103.6,103.57,0.06599797]
[1744162699730,9.6619,103.58,103.57,0.06599797]
[1744162700029,0.0630994,103.6,103.57,0.06599797]
[1744162701526,0.0630994,103.6,103.57,77.04599797]
[1744162702228,0.0630994,103.6,103.57,0.06599797]
[1744162702931,9.6619,103.58,103.57,0.06599797]
[1744162703124,0.0630994,103.6,103.57,0.06599797]
[1744162704226,86.4097,103.66,103.58,66.73214787]
[1744162704436,86.4097,103.66,103.6,66.06286217]
[1744162704731,9.4697,103.66,103.6,66.06286217]
[1744162704931,4.8527,103.66,103.6,66.06286217]
[1744162705133,9.6566,103.64,103.58,157.18196217]
[1744162705328,4.8527,103.66,103.58,147.52086217]
[1744162705525,0.06898838,103.62,103.6,0.06990497]
[1744162705720,0.06898838,103.62,103.6,66.13276714]
[1744162705930,4.91070675,103.65,103.6,66.13276714]
[1744162706126,9.6513,103.7,103.63,75.71946217]
[1744162706328,4.7702,103.73,103.65,66.06286217]
[1744162706633,14.4184,103.73,103.65,66.06286217]
[1744162706834,4.7702,103.73,103.65,66.06286217]
[1744162707235,4.456,103.76,103.68,0.07162725]
[1744162707437,4.8527,103.78,103.69,66.06286217]
[1744162707835,76.9,103.84,103.72,0.06790648]
[1744162708038,76.9,103.84,103.73,66.06286217]
[1744162708039,8.45281952,103.83,103.73,66.06286217]
[1744162708237,8.45281952,103.83,103.75,66.06286217]
[1744162708429,8.45281952,103.83,103.77,66.13552886]
[1744162708430,1.92622556,103.83,103.77,66.13552886]
[1744162708733,1.92622556,103.83,103.79,66.06286217]
[1744162709328,1.92622556,103.83,103.78,76.86]
[1744162709525,11.56512556,103.83,103.8,0.07354236]
[1744162709728,1.92622556,103.83,103.8,0.07354236]
[1744162710133,9.6404,103.81,103.8,0.07354236]
[1744162710436,1.7726121,103.81,103.7,70.72966217]
[1744162710631,142.92286217,103.82,103.7,70.72966217]
[1744162710632,8.38283491,103.8,103.72,66.06286217]
[1744162710829,1.92678227,103.8,103.72,66.06286217]
[1744162711030,9.6426,103.79,103.72,66.06286217]
[1744162711238,1.92678227,103.8,103.71,4.8522]
[1744162711433,6.45617053,103.79,103.71,4.8522]
[1744162711734,0.06746193,103.77,103.74,0.06446588]
[1744162712838,76.86746193,103.77,103.68,142.92286217]
[1744162713033,3.70106296,103.76,103.68,142.92286217]
[1744162713229,9.6493,103.72,103.68,142.92286217]
[1744162713430,1.92752505,103.76,103.68,142.92286217]
[1744162713732,1.92752505,103.76,103.68,76.86]
[1744162714237,0.06867381,103.73,103.71,0.06547822]
[1744162714436,9.6488,103.72,103.71,0.06547822]
[1744162715636,0.06867381,103.73,103.71,0.06547822]
[1744162716140,0.06867381,103.73,103.66,4.6978]
[1744162716345,76.78,103.72,103.62,142.84286217]
[1744162716641,6.22415434,103.71,103.6,142.84286217]
[1744162716839,1.77405434,103.7,103.6,76.78]
[1744162717037,1.77405434,103.7,103.61,66.06286217]
[1744162717245,1.77405434,103.7,103.63,66.06286217]
[1744162717539,0.0642157,103.67,103.64,4.67900211]
[1744162717946,0.0642157,103.67,103.64,4.6054]
[1744162718143,76.8,103.66,103.55,66.06286217]
[1744162718443,9.658,103.63,103.57,9.6622]
[1744162718637,76.8,103.66,103.57,66.06286217]
[1744162718840,9.6582,103.62,103.57,75.72526217]
[1744162719037,76.8,103.66,103.57,75.72526217]
[1744162719349,9.6596,103.61,103.56,4.6054]
[1744162719642,0.07445809,103.63,103.6,0.0729605]
[1744162719836,9.6591,103.61,103.6,0.0729605]
[1744162720039,76.8,103.66,103.56,4.6054]
[1744162720349,9.6597,103.61,103.59,0.07385199]
[1744162720546,0.07370703,103.62,103.59,0.07385199]
[1744162720743,0.07370703,103.62,103.57,66.06286217]
[1744162721041,0.07370703,103.62,103.59,0.07267498]
[1744162722749,0.07370703,103.62,103.59,66.13553715]
[1744162723447,0.07370703,103.62,103.59,0.07267498]
[1744162725444,9.6597,103.61,103.59,0.07267498]
[1744162725643,0.07370703,103.62,103.59,0.07267498]
[1744162726341,9.73200703,103.62,103.59,0.07267498]
[1744162726541,0.07370703,103.62,103.59,0.07267498]
[1744162727448,76.8,103.66,103.6,66.06286217]
[1744162727845,76.8,103.66,103.58,66.06286217]
[1744162728146,76.8,103.66,103.56,70.66826217]
[1744162728753,0.06380753,103.62,103.6,0.06115648]
[1744162729252,9.6591,103.61,103.6,0.06115648]
[1744162729645,9.72280753,103.62,103.6,0.06115648]
[1744162729843,0.06380753,103.62,103.6,0.06115648]
[1744162731242,9.6591,103.61,103.6,0.06115648]
[1744162732353,66.06286217,103.73,103.6,616.02401865]
[1744162732549,8.09298169,103.72,103.63,66.06286217]
[1744162732846,8.09298169,103.72,103.64,4.5125]
[1744162732847,1.92826841,103.72,103.64,4.5125]
[1744162733340,0.06833338,103.69,103.67,0.06703721]
[1744162734151,0.06833338,103.69,103.67,9.72023721]
[1744162734354,1.6784431,103.8,103.68,595.72572434]
[1744162734542,1.6784431,103.8,103.71,66.06286217]
[1744162734741,76.64,103.81,103.68,70.86036217]
[1744162734940,9.6456,103.76,103.7,75.71296217]
[1744162735150,540.24,103.81,103.71,4.5884]
[1744162735453,540.24,103.81,103.63,66.06286217]
[1744162735454,66.06286217,103.75,103.63,66.06286217]
[1744162735646,66.06286217,103.73,103.62,4.5884]
[1744162735954,66.06286217,103.71,103.68,0.07095252]
[1744162736150,0.06200138,103.69,103.65,265.2123522]
[1744162737055,9.6527,103.68,103.65,265.2123522]
[1744162737251,0.06200138,103.69,103.66,0.06938026]
[1744162737557,0.06200138,103.69,103.62,4.5884]
[1744162737558,1.83699535,103.69,103.62,4.5884]
[1744162737852,1.9286403,103.7,103.63,66.06286217]
[1744162738055,1.9286403,103.7,103.65,66.06286217]
[1744162738447,1.9286403,103.7,103.63,66.06286217]
[1744162738647,1.9286403,103.7,103.62,4.5884]
[1744162738849,1.84580539,103.69,103.66,0.06119845]
[1744162739249,1.84580539,103.69,103.6,81.4175]
[1744162739556,1.77514941,103.68,103.6,4.7975]
[1744162740261,66.06286217,103.66,103.59,265.2123522]
[1744162740457,66.06286217,103.61,103.59,130.03102219]
[1744162740657,78.39601202,103.6,103.59,40.22762219]
[1744162740960,9.6609,103.59,103.58,293.86616245]
[1744162741259,76.62,103.6,103.58,293.86616245]
[1744162741457,465.36957067,103.65,103.58,293.86616245]
[1744162741757,0.06568148,103.6,103.58,293.93275492]
[1744162741959,465.36957067,103.65,103.58,293.86616245]
[1744162742261,1.77605187,103.64,103.56,79.96006217]
[1744162742459,465.36957067,103.65,103.58,66.06286217]
[1744162742671,465.36957067,103.65,103.56,79.96006217]
[1744162743163,0.06879528,103.62,103.59,0.06621783]
[1744162743761,76.64,103.61,103.59,0.06621783]
[1744162744359,1.77651507,103.6,103.59,0.06621783]
[1744162744561,76.64,103.61,103.59,0.06621783]
[1744162744862,390.17050193,103.6,103.38,548.0]
[1744162745056,66.06286217,103.55,103.45,4.7844]
[1744162745261,66.06286217,103.53,103.45,4.7844]
[1744162745457,465.57162062,103.54,103.45,4.7844]
[1744162745662,542.23162062,103.54,103.5,9.6688]
[1744162745866,542.23162062,103.54,103.46,70.76326217]
[1744162746160,0.06603631,103.53,103.51,0.06486325]
[1744162746366,1.93162062,103.54,103.51,0.06486325]
[1744162746559,66.06286217,103.64,103.53,66.06286217]
[1744162746863,76.66,103.65,103.57,9.6623]
[1744162747060,1.77596051,103.64,103.57,9.6623]
[1744162747260,1.77596051,103.64,103.54,9.3346]
[1744162747462,67.83882268,103.64,103.54,9.3346]
[1744162747664,0.06882272,103.6,103.58,0.07337061]
[1744162747863,76.66,103.65,103.61,9.6588]
[1744162748165,142.72286217,103.65,103.54,9.3346]
[1744162748351,76.66,103.65,103.54,9.3346]
[1744162748557,76.66,103.65,103.58,9.6613]
[1744162748856,76.66,103.65,103.55,66.06286217]
[1744162749164,0.07084447,103.63,103.6,0.07365613]
[1744162749359,76.66,103.65,103.6,0.07365613]
[1744162749559,0.07276602,103.63,103.6,0.07365613]
[1744162749763,0.07276602,103.63,103.6,9.6596]
[1744162750064,0.07276602,103.63,103.6,0.06593343]
[1744162750263,463.64,103.67,103.61,4.7274]
[1744162750565,76.66,103.69,103.61,70.79026217]
[1744162750959,76.66,103.69,103.65,9.6548]
[1744162751159,71.2737868,103.64,103.61,70.79026217]
[1744162751354,27.4119868,103.64,103.61,80.45026217]
[1744162751554,0.06336617,103.64,103.61,80.52378945]
[1744162751758,95.91094107,103.65,103.64,9.6563]
[1744162751954,142.5956322,103.66,103.63,66.06286217]
[1744162752164,302.4367006,103.68,103.65,66.06286217]
[1744162752367,32.6734698,103.68,103.67,66.06286217]
[1744162752559,191.21161701,103.69,103.67,141.76572434]
[1744162752760,88.82151701,103.69,103.68,9.6525]
[1744162752971,88.88401848,103.69,103.68,19.2925]
[1744162753665,54.09351848,103.69,103.68,85.35536217]
[1744162753870,362.0916807,103.7,103.69,9.6516]
[1744162754262,362.0916807,103.7,103.69,19.2916]
[1744162754667,343.8056807,103.7,103.69,19.2916]
[1744162754864,731.6318012,103.79,103.69,19.2916]
[1744162754865,76.66,103.79,103.69,9.64]
[1744162755060,463.64,103.81,103.7,142.68286217]
[1744162755261,303.00946958,103.82,103.72,66.06286217]
[1744162755458,303.00946958,103.82,103.74,66.12531215]
[1744162755662,303.00946958,103.82,103.75,76.62]
[1744162756066,303.00946958,103.82,103.77,0.06225494]
[1744162756661,303.00946958,103.82,103.78,529.28286217]
[1744162756662,287.95556958,103.82,103.78,529.28286217]
[1744162757464,227.42476958,103.82,103.81,9.6404]
[1744162757667,4.5304,103.91,103.81,86.22]
[1744162757968,463.22,103.99,103.86,66.06286217]
[1744162758169,9.6281,103.95,103.86,142.64286217]
[1744162758359,79.59766217,103.98,103.86,76.58]
[1744162758564,79.59766217,103.98,103.89,0.06780601]
[1744162758765,9.6258,103.97,103.94,756.89658399]
[1744162758958,66.06286217,104.02,103.94,756.89658399]
[1744162759164,66.06286217,104.0,103.94,756.97030352]
[1744162759568,70.49986217,104.02,103.94,756.89658399]
[1744162759773,70.49986217,104.02,103.96,0.07234377]
[1744162760066,6.35970717,104.02,103.98,737.29198399]
[1744162760266,6.35970717,104.02,103.96,4.377e-05]
[1744162760470,66.06286217,104.0,103.95,65.8901396]
[1744162760769,76.44,103.99,103.95,65.8901396]
[1744162760966,66.06286217,103.98,103.95,65.8901396]
[1744162761367,66.06286217,103.96,103.95,44.02349916]
[1744162761671,0.06306167,103.98,103.95,31.68666514]
[1744162761873,66.12592384,103.98,103.86,544.1111]
[1744162762070,66.12592384,103.98,103.86,610.17396217]
[1744162762267,66.06286217,103.98,103.86,610.17396217]
[1744162762470,66.06286217,104.0,103.88,66.06286217]
[1744162762669,0.07104286,103.93,103.91,0.07148385]
[1744162762973,66.06286217,103.96,103.86,4.6511]
[1744162763272,66.06286217,103.92,103.91,0.06742993]
[1744162763576,208.52572434,103.92,103.83,4.6511]
[1744162763872,66.06286217,103.89,103.81,4.4916]
[1744162764261,66.06286217,103.87,103.8,4.6511]
[1744162764568,0.07369942,103.85,103.82,0.07196495]
[1744162765668,9.71059942,103.85,103.82,0.07196495]
[1744162765974,0.07369942,103.85,103.82,0.07196495]
[1744162766169,9.71069942,103.85,103.82,0.07196495]
[1744162766475,0.07369942,103.85,103.82,0.07196495]
[1744162766666,9.6386,103.83,103.82,0.07196495]
[1744162766867,75.77656159,103.85,103.78,131.7802792]
[1744162767067,66.06286217,103.83,103.78,131.7802792]
[1744162767267,462.7,103.84,103.78,131.7802792]
[1744162767268,76.4,103.82,103.78,131.7802792]
[1744162768268,66.06286217,103.8,103.78,82.78567866]
[1744162768479,66.06286217,103.8,103.78,7.866e-05]
[1744162768774,0.06372382,103.81,103.78,7.866e-05]
[1744162769075,0.06372382,103.81,103.72,66.06286217]
[1744162769276,9.6432,103.78,103.71,80.16846217]
[1744162769475,76.4,103.81,103.71,70.51876217]
[1744162769775,0.06986378,103.76,103.75,0.06531947]
[1744162770277,66.06286217,103.78,103.75,0.06531947]
[1744162770475,9.6451,103.76,103.75,0.06531947]
[1744162770667,9.6451,103.76,103.75,1.947e-05]
[1744162770877,86.0451,103.76,103.75,1.947e-05]
[1744162771069,9.6451,103.76,103.75,1.947e-05]
[1744162771577,19.2851,103.76,103.75,1.947e-05]
[1744162772079,9.6518,103.69,103.66,4.6178]
[1744162772278,76.42,103.72,103.63,74.98276217]
[1744162772473,76.42,103.72,103.63,8.9199]
[1744162772773,1.92845434,103.71,103.63,8.9199]
[1744162772978,66.06286217,103.7,103.63,4.4285]
[1744162773273,1.92845434,103.71,103.65,0.07005313]
[1744162773474,0.07106782,103.68,103.65,0.07005313]
[1744162773778,9.6544,103.66,103.65,0.07005313]
[1744162774479,0.07106782,103.68,103.65,0.07005313]
[1744162775777,76.46,103.67,103.65,5.313e-05]
[1744162776079,66.06286217,103.66,103.56,9.2107]
[1744162776275,76.46,103.67,103.56,4.7839]
[1744162776479,66.06286217,103.66,103.56,4.7839]
[1744162776676,76.46,103.67,103.56,70.84676217]
[1744162776879,66.06286217,103.66,103.56,4.7839]
[1744162777177,1.92957067,103.65,103.56,4.7839]
[1744162777478,0.06469858,103.62,103.6,0.06741341]
[1744162778378,1.67977989,103.71,103.6,0.06741341]
[1744162778580,66.06286217,103.74,103.61,66.06286217]
[1744162778776,463.22,103.76,103.64,66.06286217]
[1744162779281,102.77575625,103.73,103.64,66.06286217]
[1744162779683,0.06899784,103.71,103.69,0.06502019]
[1744162779979,0.06899784,103.71,103.54,66.06286217]
[1744162780281,66.06286217,103.66,103.55,4.5559]
[1744162780474,9.6594,103.61,103.55,4.5559]
[1744162780674,66.06286217,103.63,103.55,4.5559]
[1744162781079,0.06643324,103.6,103.58,0.06987438]
[1744162781573,9.6609,103.59,103.58,7.438e-05]
[1744162781876,0.06643324,103.6,103.58,7.438e-05]
[1744162782679,9.6609,103.59,103.58,7.438e-05]
[1744162782980,0.06643324,103.6,103.58,7.438e-05]
[1744162783377,9.6609,103.59,103.58,7.438e-05]
[1744162785383,86.1609,103.59,103.58,7.438e-05]
[1744162785787,554.116,103.59,103.58,7.438e-05]
[1744162786670,9.6665,103.53,103.52,4.6686]
[1744162787273,76.5,103.59,103.52,80.39146217]
[1744162787480,76.5,103.59,103.52,70.73146217]
[1744162787683,76.5,103.59,103.52,4.6686]
[1744162787886,0.06722559,103.57,103.54,0.06572185]
[1744162788280,0.06722559,103.57,103.54,2.185e-05]
[1744162788486,529.65008776,103.57,103.54,2.185e-05]
[1744162788683,534.24518776,103.57,103.54,2.185e-05]
[1744162788880,9.6647,103.55,103.54,2.185e-05]
[1744162789381,9.6662,103.54,103.5,54.14908136]
[1744162789574,463.58722559,103.57,103.5,44.48008136]
[1744162789780,463.52,103.57,103.5,44.48008136]
[1744162789992,9.667,103.53,103.5,44.48008136]
[1744162790283,9.667,103.53,103.46,14.2721]
[1744162790485,9.667,103.53,103.49,66.06286217]
[1744162790679,0.07006946,103.51,103.49,66.06286217]
[1744162790880,9.667,103.53,103.49,66.06286217]
[1744162791185,9.6664,103.54,103.5,9.6693]
[1744162791581,463.52,103.57,103.5,9.6693]
[1744162791979,463.52,103.57,103.49,66.06286217]
[1744162792178,0.06906576,103.55,103.52,0.06821393]
[1744162793085,9.6665,103.53,103.52,0.06821393]
[1744162793288,0.06906576,103.55,103.52,0.06821393]
[1744162793681,9.6665,103.53,103.52,0.06821393]
[1744162795586,9.6705,103.49,103.46,14.2721]
[1744162795787,76.52,103.53,103.46,9.4741]
[1744162795996,76.52,103.53,103.47,9.6716]
[1744162796586,76.52,103.53,103.46,19.1467]
[1744162796895,9.6693,103.5,103.49,0.06395218]
[1744162797595,463.52,103.57,103.49,75.78681435]
[1744162797791,463.52,103.57,103.49,66.12681435]
[1744162797991,9.6652,103.55,103.51,9.6679]
[1744162798295,463.52,103.57,103.48,66.06286217]
[1744162798594,463.52,103.57,103.5,9.6692]
[1744162798792,0.06952898,103.54,103.51,0.07328845]
[1744162799490,76.52,103.53,103.46,9.4741]
[1744162800492,76.52,103.53,103.43,4.5525]
[1744162800690,0.06601165,103.51,103.48,0.07377733]
[1744162801397,9.6703,103.49,103.48,0.07377733]
[1744162801799,0.06601165,103.51,103.48,0.07377733]
[1744162801992,9.73491165,103.51,103.48,0.07377733]
[1744162802798,0.06601165,103.51,103.48,0.07377733]
[1744162803098,38.4393126,103.5,103.43,4.5525]
[1744162803294,38.4393126,103.5,103.47,9.6719]
[1744162803496,38.4393126,103.5,103.46,66.06286217]
[1744162803798,9.1941126,103.5,103.48,66.06286217]
[1744162803994,102.77575625,103.51,103.49,76.54]
[1744162804191,256.70876775,103.54,103.51,66.06286217]
[1744162804387,14.2052,103.6,103.55,9.6647]
[1744162804589,4.5447,103.6,103.55,9.6647]
[1744162804798,4.4026,103.61,103.55,19.3247]
[1744162804991,258.47711203,103.56,103.55,9.6647]
[1744162805191,258.47711203,103.56,103.55,9.55480395]
[1744162805888,322.87612632,103.57,103.55,75.72286217]
[1744162806085,463.90743752,103.76,103.56,66.06286217]
[1744162806297,8.9794,103.73,103.65,66.06286217]
[1744162806493,8.9794,103.73,103.65,75.71816217]
[1744162806684,8.9794,103.73,103.65,66.06286217]
[1744162806889,76.54,103.71,103.63,66.06286217]
[1744162807285,0.06606365,103.68,103.6,66.06286217]
[1744162807487,0.06606365,103.68,103.62,9.6576]
[1744162807698,9.6549,103.66,103.61,66.06286217]
[1744162807903,19.32,103.68,103.63,66.06286217]
[1744162808199,8.9794,103.73,103.67,66.06286217]
[1744162808497,0.0657987,103.71,103.69,0.07156841]
[1744162808995,75.70286217,103.71,103.64,827.6217012]
[1744162809197,76.52,103.7,103.64,827.6217012]
[1744162809591,95.84,103.7,103.64,827.6217012]
[1744162810091,0.07062438,103.68,103.66,0.06423444]
[1744162810492,4.4026,103.75,103.67,66.06286217]
[1744162810692,9.6444,103.77,103.72,9.6483]
[1744162810895,19.32,103.77,103.71,142.56286217]
[1744162811098,4.6026,103.79,103.73,66.06286217]
[1744162811299,9.6411,103.81,103.76,9.6451]
[1744162811502,24.1669,103.84,103.76,754.59265114]
[1744162811703,0.06842262,103.8,103.77,0.06466998]
[1744162812093,19.38842262,103.8,103.76,754.59265114]
[1744162812290,0.06842262,103.8,103.77,66.1275224]
[1744162812499,0.06842262,103.8,103.77,142.6275224]
[1744162812992,19.38842262,103.8,103.78,59.1158358]
[1744162813192,81.0437,103.85,103.78,59.1158358]
[1744162813397,9.6401,103.82,103.79,59.1158358]
[1744162813598,100.3637,103.85,103.79,59.1158358]
[1744162814307,100.3637,103.85,103.8,59.1158358]
[1744162814605,9.70209993,103.83,103.81,0.07332653]
[1744162814995,5.93377725,103.83,103.81,0.07332653]
[1744162815404,5.93377725,103.83,103.82,137.9369502]
[1744162815702,11.56622556,103.83,103.69,690.50286217]
[1744162815912,66.06286217,103.79,103.69,3.77954928]
[1744162816108,66.06286217,103.77,103.69,3.77954928]
[1744162816299,76.44,103.78,103.68,66.06286217]
[1744162816603,9.6451,103.76,103.75,418.21163554]
[1744162816906,9.6451,103.76,103.75,396.30733554]
[1744162817207,9.6451,103.76,103.75,389.00593554]
[1744162817406,19.2851,103.76,103.75,378.27753554]
[1744162817703,9.6451,103.76,103.75,363.25673554]
[1744162818008,9.646,103.75,103.74,1.173e-05]
[1744162818305,463.16,103.75,103.68,3.873]
[1744162818501,529.22286217,103.75,103.68,7.65254928]
[1744162818893,529.22286217,103.75,103.68,3.873]
[1744162819107,66.06286217,103.73,103.67,4.5734]
[1744162819305,76.42,103.72,103.65,98.526393]
[1744162819499,66.06286217,103.71,103.7,9.453e-05]
[1744162819706,66.06286217,103.71,103.65,102.30594228]
[1744162820096,9.652,103.69,103.65,98.526393]
[1744162820301,66.06286217,103.71,103.65,102.30594228]
[1744162820899,9.6531,103.68,103.67,0.07203431]
[1744162821109,66.12500267,103.69,103.67,0.07203431]
[1744162821303,254.63075046,103.68,103.67,0.07203431]
[1744162823111,221.62640118,103.68,103.67,0.07203431]
[1744162823406,289.43197731,103.68,103.67,9.6535]
[1744162823708,289.43197731,103.68,103.62,80.08916217]
[1744162823902,299.08487731,103.68,103.64,9.6557]
[1744162824208,37.56944197,103.68,103.62,14.0263]
[1744162824508,37.56944197,103.68,103.6,142.48286217]
[1744162824509,0.06306552,103.67,103.65,0.0697498]
[1744162824810,142.44592769,103.67,103.56,529.22286217]
[1744162825005,9.6587,103.62,103.57,9.6625]
[1744162825801,66.06286217,103.65,103.56,4.4094]
[1744162826104,66.06286217,103.65,103.58,0.07030972]
[1744162826105,0.06613487,103.61,103.58,0.07030972]
[1744162826603,0.06613487,103.61,103.56,70.47226217]
[1744162826802,0.06613487,103.61,103.58,0.06315274]
[1744162827108,0.06613487,103.61,103.56,110.96752828]
[1744162827304,0.06613487,103.61,103.56,48.96752828]
[1744162827509,0.06613487,103.61,103.52,66.06286217]
[1744162827911,66.06286217,103.64,103.55,9.664]
[1744162828207,0.06859542,103.58,103.55,0.06395641]
[1744162828509,9.6606,103.6,103.53,4.734]
[1744162828813,0.06715321,103.58,103.55,0.06148493]
[1744162829406,9.6637,103.56,103.55,0.06148493]
[1744162829707,256.76415287,103.57,103.48,4.734]
[1744162829904,9.666,103.54,103.48,4.734]
[1744162830105,76.34,103.56,103.48,4.734]
[1744162830409,76.34,103.56,103.45,66.06286217]
[1744162830410,142.40286217,103.56,103.45,66.06286217]
[1744162830617,66.06286217,103.52,103.42,1.68144372]
[1744162830809,66.06286217,103.5,103.41,4.734]
[1744162831110,76.34,103.51,103.44,66.06286217]
[1744162831613,0.06397145,103.49,103.44,66.06286217]
[1744162831806,71.11501421,103.45,103.44,66.06286217]
[1744162832009,18.38941421,103.45,103.44,66.06286217]
[1744162832211,11.07341421,103.45,103.44,9.6749]
[1744162832910,11.07341421,103.45,103.41,147.13686217]
[1744162833312,11.07341421,103.45,103.44,9.6749]
[1744162833514,86.9149638,103.45,103.41,142.40286217]
[1744162833715,86.9149638,103.45,103.39,66.06286217]
[1744162834116,86.9149638,103.45,103.37,142.44286217]
[1744162834317,0.06441837,103.43,103.39,66.06286217]
[1744162835019,0.06441837,103.43,103.42,9.6768]
[1744162835621,0.06441837,103.43,103.4,66.06286217]
[1744162835622,0.06441837,103.43,103.37,76.38]
[1744162835816,0.06441837,103.43,103.36,66.06286217]
[1744162836011,9.6773,103.42,103.34,66.06286217]
[1744162836413,0.07186115,103.39,103.32,66.06286217]
[1744162836620,0.07186115,103.39,103.34,9.684]
[1744162836820,9.2581,103.4,103.3,66.06286217]
[1744162837121,9.2581,103.4,103.28,76.42]
[1744162837122,0.07181508,103.38,103.37,9.6815]
[1744162837318,0.07181508,103.38,103.32,66.06286217]
[1744162837516,9.2581,103.4,103.28,624.42]
[1744162837722,9.2581,103.4,103.37,9.6814]
[1744162838122,9.2581,103.4,103.32,66.06286217]
[1744162838320,9.32218527,103.4,103.34,66.06286217]
[1744162838621,9.2581,103.4,103.34,66.06286217]
[1744162838822,0.06810014,103.38,103.34,66.06286217]
[1744162839419,1.4e-07,103.38,103.34,66.06286217]
[1744162839617,1.4e-07,103.38,103.33,138.46]
[1744162839818,1.4e-07,103.38,103.35,9.6829]
[1744162840222,1.4e-07,103.38,103.31,66.06286217]
[1744162840621,89.22685177,103.41,103.33,66.06286217]
[1744162840820,3.532e-05,103.36,103.35,9.6834]
[1744162841216,12.80685177,103.41,103.35,75.74286217]
[1744162841424,12.80685177,103.41,103.35,66.06286217]
[1744162841623,12.80685177,103.41,103.37,66.06286217]
[1744162841923,12.80685177,103.41,103.4,9.6787]
[1744162842526,12.80685177,103.41,103.38,0.06741838]
[1744162842826,76.48,103.4,103.31,66.06286217]
[1744162843325,76.48,103.4,103.33,66.06286217]
[1744162843623,86.1593,103.4,103.33,66.06286217]
[1744162844024,0.07130235,103.38,103.35,0.06144997]
[1744162845427,0.07130235,103.38,103.29,76.48]
[1744162845819,9.6829,103.36,103.32,9.6856]
[1744162846121,9.6829,103.36,103.29,76.48]
[1744162846325,9.6817,103.37,103.29,76.48]
[1744162846624,0.06535349,103.34,103.29,76.48]
[1744162846817,5.349e-05,103.34,103.31,66.06286217]
[1744162847115,5.349e-05,103.34,103.33,9.685]
[1744162848018,5.349e-05,103.34,103.32,9.75962669]
[1744162848219,5.349e-05,103.34,103.32,0.07372669]
[1744162848418,5.349e-05,103.34,103.33,9.6852]
[1744162848624,5.349e-05,103.34,103.32,0.07372669]
[1744162848818,5.349e-05,103.34,103.29,76.48]
[1744162849024,5.349e-05,103.34,103.27,66.06286217]
[1744162849227,5.349e-05,103.34,103.25,66.22836217]
[1744162849419,66.06286217,103.36,103.25,66.06286217]
[1744162849625,9.686,103.33,103.29,9.6889]